{"text_format":"3","workbook":"xlsx","n_sheets":5,"sheets":["Poeng pr løp","Poeng totalt","R2","RWD","R5"],"read":"whole","date_system":"1900"}

{"sheet":"Poeng pr løp","index":0,"n_rows":86,"n_cols":7,"rows_kept":86}
["ABMO Snøfreser'n 4-7.april",null,"KLUBB","R2","RWD","R5","TOTALT"]
["Holmdahl89","Martin Holmdahl","KNA Kongsvinger",11,5,11,{"$f":"SUM(D2:F2)","v":27}]
["Kjelloeyvindnor","Kjell Øyvind Pedersen","NMK Hønefoss",8,6,7,{"$f":"SUM(D3:F3)","v":21}]
["Rallywangen2008","Martin Wangen","Asker og Bærum Motorsport",7,4,5,16]
["Chrisboy961","Christopher S Kolbjørnsen","NMK Gardermoen",5,2,8,15]
["Slow-Go73","Ole Gunnar Nilsen","Happarally",6,3,4,13]
["Sainless89","Pål Gundersen","Søbakken Racing",3,1,6,10]
["Tgs82","Trond Gunnar Stensby",null,4,1,1,6]
["Of","Oliver Fredriksen","Asker og Bærum Motorsport",2,1,3,6]
["Clubmans-cave","Espen Selvik","Asker og Bærum Motorsport",1,1,2,4]
["Prebenberg2","Preben Berg","Asker og Bærum Motorsport",1,1,1,3]
["Beaxe","Axel Mustad",null,1,1,1,3]
["KarlTangen","Karl Tangen",null,0,1,0,1]
[]
["ABMO Rally Revetal. 25-28.april",null,"KLUBB","R2","RWD","R5","TOTALT"]
["Holmdahl89","Martin Holmdahl","KNA Kongsvinger",8,9,9,{"$f":"SUM(D16:F16)","v":26}]
["Kjelloeyvindnor","Kjell Øyvind Pedersen","NMK Hønefoss",4,6,6,16]
["Nyhus240racing","Roar Nyhus","KNA Kongsvinger",5,5,5,15]
["Slow-Go73","Ole Gunnar Nilsen","Happarally",6,1,4,11]
["Rallywangen2008","Martin Wangen","Asker og Bærum Motorsport",3,4,2,9]
["Chrisboy961","Christopher S Kolbjørnsen","NMK Gardermoen",2,2,3,7]
["Clubmans-cave","Espen Selvik","Asker og Bærum Motorsport",1,3,1,5]
["Prebenberg2","Preben Berg","Asker og Bærum Motorsport",1,1,1,3]
["Sainless89","Pål Gundersen","Søbakken Racing",0,1,1,2]
[]
["ABMO Sprintrally Bilbyen Vest. 6-9.juni",null,"KLUBB","R2","RWD","R5","TOTALT"]
["Holmdahl89","Martin Holmdahl","KNA Kongsvinger",12,10,12,{"$f":"SUM(D27:F27)","v":34}]
["Rallywangen2008","Martin Wangen","Asker og Bærum Motorsport",7,7,8,22]
["SimenNB","Simen Nordheim Berg","Asker og Bærum Motorsport",9,5,7,21]
["Kjelloeyvindnor","Kjell Øyvind Pedersen","NMK Hønefoss",1,6,9,16]
["Prebenberg2","Preben Berg","Asker og Bærum Motorsport",5,1,6,12]
["Slow-Go73","Ole Gunnar Nilsen","Happarally",8,0,4,12]
["Nyhus240racing","Roar Nyhus","KNA Kongsvinger",1,4,5,10]
["Chrisboy961","Christopher S Kolbjørnsen","NMK Gardermoen",3,3,2,8]
["Sainless89","Pål Gundersen","Søbakken Racing",6,1,1,8]
["SNP","Sander Nathaniel Pedersen","NMK Harstad",4,0,1,5]
["Clubmans-cave","Espen Selvik","Asker og Bærum Motorsport",2,2,1,5]
["Of","Oliver Fredriksen","Asker og Bærum Motorsport",1,1,3,5]
[]
["ABMO Grusspruten. 15-18.august",null,"KLUBB","R2","RWD","R5","TOTALT"]
["Kjelloeyvindnor","Kjell Øyvind Pedersen","NMK Hønefoss",6,9,10,{"$f":"SUM(D41:F41)","v":25}]
["Slow-Go73","Ole Gunnar Nilsen","Happarally",8,5,6,19]
["Holmdahl89","Martin Holmdahl","KNA Kongsvinger",4,6,7,17]
["Chrisboy961","Christopher S Kolbjørnsen","NMK Gardermoen",0,4,5,9]
["Prebenberg2","Preben Berg","Asker og Bærum Motorsport",3,1,3,7]
["SimenNB","Simen Nordheim Berg","Asker og Bærum Motorsport",2,0,4,6]
["MG-One66","Morten Gravermoen","NMK Modum og Sigdal",5,0,1,6]
["Clubmans-cave","Espen Selvik","Asker og Bærum Motorsport",1,3,1,5]
["Rallywangen2008","Martin Wangen","Asker og Bærum Motorsport",0,1,2,3]
["Nyhus240racing","Roar Nyhus","KNA Kongsvinger",1,1,0,2]
["JohannessenNOR","Kjetil Johannessen",null,0,2,0,2]
["K_johnsen86","Kenneth Johnsen","Asker og Bærum Motorsport",0,0,1,1]
[]
["ABMO Rally Telemark. 10-13.oktober",null,"KLUBB","R2","RWD","R5","TOTALT"]
["Holmdahl89","Martin Holmdahl","KNA Kongsvinger",5,7,13,{"$f":"SUM(D55:F55)","v":25}]
["Rallywangen2008","Martin Wangen","Asker og Bærum Motorsport",6,8,10,24]
["Nyhus240racing","Roar Nyhus","KNA Kongsvinger",10,6,6,22]
["Slow-Go73","Ole Gunnar Nilsen","Happarally",7,5,8,20]
["Kjelloeyvindnor","Kjell Øyvind Pedersen","NMK Hønefoss",1,11,7,19]
["Chrisboy961","Christopher S Kolbjørnsen","NMK Gardermoen",4,4,5,13]
["Prebenberg2","Preben Berg","Asker og Bærum Motorsport",2,3,4,9]
["SimenNB","Simen Nordheim Berg","Asker og Bærum Motorsport",3,0,3,6]
["JohannessenNor","Kjetil Johannessen",null,1,1,2,4]
["Karltangen","Karl Tangen",null,0,2,1,3]
["Normagnus","Magnus Hage Larsen","Asker og Bærum Motorsport",1,1,0,2]
["K_johnsen86","Kenneth Johnsen","Asker og Bærum Motorsport",0,1,1,2]
["Clubmans-cave","Espen Selvik","Asker og Bærum Motorsport",0,0,1,1]
["MG-One66","Morten Gravermoen","NMK Modum og Sigdal",0,0,1,1]
[]
["ABMO Stifinner'n. 7-10.november",null,"KLUBB","R2","RWD","R5","TOTALT"]
["Holmdahl89","Martin Holmdahl","KNA Kongsvinger",8,11,8,{"$f":"SUM(D71:F71)","v":27}]
["Kjelloeyvindnor","Kjell Øyvind Pedersen","NMK Hønefoss",6,6,11,23]
["Nyhus240racing","Roar Nyhus","KNA Kongsvinger",4,8,6,18]
["Rallywangen2008","Martin Wangen","Asker og Bærum Motorsport",5,7,5,17]
["Chrisboy961","Christopher S Kolbjørnsen","NMK Gardermoen",3,1,7,11]
["Slow-Go73","Ole Gunnar Nilsen","Happarally",2,5,4,11]
["Clubmans-cave","Espen Selvik","Asker og Bærum Motorsport",1,3,2,6]
["Prebenberg2","Preben Berg","Asker og Bærum Motorsport",1,4,1,6]
["Normagnus","Magnus Hage Larsen","Asker og Bærum Motorsport",0,1,3,4]
["Karltangen","Karl Tangen",null,0,2,1,3]
["K_johnsen86","Kenneth Johnsen","Asker og Bærum Motorsport",0,1,1,2]
[]
["Poengene gis etter Dirt-rally sitt system. Man vil alltid få 1 poeng i ett løp"]
["selv om man bryter underveis. 0 poeng er kun hvis man ikke har deltatt i løpet."]
["5 av 6 løp er tellende, dvs har man kjørt alle seks løpene i f.eks R2 vil det"]
["dårligste resultatet bli strøket i den klassen."]

{"sheet":"Poeng totalt","index":1,"n_rows":26,"n_cols":7,"rows_kept":26}
["ABMO CUP, Poeng totalt etter løp 6",null,"KLUBB","R2","RWD","R5","TOTALT"]
["Holmdahl89","Martin Holmdahl","KNA Kongsvinger",44,43,53,{"$f":"SUM(D2:F2)","v":140}]
["Kjelloeyvindnor","Kjell Øyvind Pedersen","NMK Hønefoss",25,38,44,{"$f":"SUM(D3:F3)","v":107}]
["Rallywangen2008","Martin Wangen","Asker og Bærum Motorsport",28,30,30,{"$f":"SUM(D4:F4)","v":88}]
["Slow-Go73","Ole Gunnar Nilsen","Happarally",35,19,26,{"$f":"SUM(D5:F5)","v":80}]
["Nyhus240racing","Roar Nyhus","KNA Kongsvinger",21,24,22,{"$f":"SUM(D6:F6)","v":67}]
["Chrisboy961","Christopher S Kolbjørnsen","NMK Gardermoen",17,15,28,60]
["Prebenberg2","Preben Berg","Asker og Bærum Motorsport",12,10,15,37]
["SimenNB","Simen Nordheim Berg","Asker og Bærum Motorsport",14,5,14,33]
["Clubmans-cave","Espen Selvik","Asker og Bærum Motorsport",6,12,7,25]
["Sainless89","Pål Gundersen","Søbakken Racing",9,3,8,20]
["Of","Oliver Fredriksen","Asker og Bærum Motorsport",3,2,6,11]
["Mg-One66","Morten Gravermoen","NMK Modum og Sigdal",5,0,2,7]
["Karltangen","Karl Tangen",null,0,5,2,7]
["Tgs82","Trond Gunnar Stensby",null,4,1,1,6]
["Johannessennor","Kjetil Johannessen",null,1,3,2,6]
["Normagnus","Magnus Hage Larsen","Asker og Bærum Motorsport",1,2,3,6]
["SNP","Sander Nathaniel Pedersen","NMK Harstad",4,0,1,5]
["K_Johnsen86","Kenneth Johnsen","Asker og Bærum Motorsport",0,2,3,5]
["Beaxe","Axel Mustad",null,1,1,1,3]
[]
[]
["Poengene gis etter Dirt-rally sitt system. Man vil alltid få 1 poeng i ett løp"]
["selv om man bryter underveis. 0 poeng er kun hvis man ikke har deltatt i løpet."]
["5 av 6 løp er tellende, dvs har man kjørt alle seks løpene i f.eks R2 vil det"]
["dårligste resultatet bli strøket i den klassen. Poeng er da markert i rødt i klasselisene og er da tatt vekk"]

{"sheet":"R2","index":2,"n_rows":23,"n_cols":10,"rows_kept":23}
["ABMO DIRT-CUP, R2",null,"KLUBB","Løp 1","Løp 2","Løp 3","Løp 4","Løp 5","Løp 6","Totalt"]
["Holmdahl89","Martin Holmdahl","KNA Kongsvinger",11,8,12,4,5,8,44]
["Slow-Go73","Ole Gunnar Nilsen","Happarally",6,6,8,8,7,2,35]
["Rallywangen2008","Martin Wangen","Asker og Bærum Motorsport",7,3,7,0,6,5,{"$f":"SUM(D4:I4)","v":28}]
["Kjelloeyvindnor","Kjell Ø Pedersen","NMK Hønefoss",8,4,1,6,1,6,25]
["Nyhus240racing","Roar Nyhus","KNA Kongsvinger",0,5,1,1,10,4,{"$f":"SUM(D6:I6)","v":21}]
["Chrisboy961","Christopher S Kolbjørnsen","NMK Gardermoen",5,2,3,0,4,3,{"$f":"SUM(D7:I7)","v":17}]
["SimenNB","Simen Nordheim Berg","Asker og Bærum Motorsport",0,0,9,2,3,0,{"$f":"SUM(D8:I8)","v":14}]
["Prebenberg2","Preben Berg","Asker og Bærum Motorsport",1,1,5,3,2,1,12]
["Sainless89","Pål Gundersen","Søbakken Racing",3,0,6,0,0,0,{"$f":"SUM(D10:I10)","v":9}]
["Clubmans-Cave","Espen Selvik","Asker og Bærum Motorsport",1,1,2,1,0,1,6]
["Mg-one66","Morten Gravermoen","NMK Modum og Sigdal",0,0,0,5,0,0,5]
["Tgs82","Trond Gunnar Stensby",null,4,0,0,0,0,0,4]
["SNP","Sander Nathaniel Pedersen","NMK Harstad",0,0,4,0,0,0,4]
["Of","Oliver Fredriksen","Asker og Bærum Motorsport",2,0,1,0,0,0,3]
["Beaxe","Axel Mustad",null,1,0,0,0,0,0,1]
["Normagnus","Magnus Hage Larsen","Asker og Bærum Motorsport",0,0,0,0,1,0,1]
["JohannessenNor","Kjetil Johannessen",null,0,0,0,0,1,0,{"$f":"SUM(D18:I18)","v":1}]
[]
["Poengene gis etter Dirt-rally sitt system. Man vil alltid få 1 poeng i ett løp"]
["selv om man bryter underveis. 0 poeng er kun hvis man ikke har deltatt i løpet."]
["5 av 6 løp er tellende, dvs har man kjørt alle seks løpene i f.eks R2 vil det"]
["dårligste resultatet bli strøket i den klassen. Poeng markert i rødt er da tatt vekk"]

{"sheet":"RWD","index":3,"n_rows":23,"n_cols":10,"rows_kept":23}
["ABMO DIRT-CUP, RWD",null,"KLUBB","Løp 1","Løp 2","Løp 3","Løp 4","Løp 5","Løp 6","Totalt"]
["Holmdahl89","Martin Holmdahl","KNA Kongsvinger",5,9,10,6,7,11,43]
["Kjelloevindnor","Kjell Øyvind Pedersen","NMK Hønefoss",6,6,6,9,11,6,38]
["Rallywangen2008","Martin Wangen","Asker og Bærum Motorsport",4,4,7,1,8,7,30]
["Nyhus240racing","Roar Nyhus","KNA Kongsvinger",0,5,4,1,6,8,{"$f":"SUM(D5:I5)","v":24}]
["Slow-Go73","Ole Gunnar Nilsen","Happarally",3,1,0,5,5,5,{"$f":"SUM(D6:I6)","v":19}]
["Chrisboy961","Christopher S Kolbjørnsen","NMK Gardermoen",2,2,3,4,4,1,15]
["Clubmans-cave","Espen Selvik","Asker og Bærum Motorsport",1,3,2,3,0,3,{"$f":"SUM(D8:I8)","v":12}]
["Prebenberg2","Preben Berg","Asker og Bærum Motorsport",1,1,1,1,3,4,10]
["SimenNB","Simen Nordheim Berg","Asker og Bærum Motorsport",0,0,5,0,0,0,5]
["Karltangen","Karl Tangen",null,1,0,0,0,2,2,{"$f":"SUM(D11:I11)","v":5}]
["Sainless89","Pål Gundersen","Søbakken Racing",1,1,1,0,0,0,{"$f":"SUM(D12:I12)","v":3}]
["JohannessenNOR","Kjetil Johannessen",null,0,0,0,2,1,0,3]
["Of","Oliver Fredriksen","Asker og Bærum Motorsport",1,0,1,0,0,0,2]
["Normagnus","Magnus Hage Larsen","Asker og Bærum Motorsport",0,0,0,0,1,1,2]
["K_johnsen86","Kenneth Johnsen","Asker og Bærum Motorsport",0,0,0,0,1,1,{"$f":"SUM(D16:I16)","v":2}]
["Tgs82","Trond Gunnar Stensby",null,1,0,0,0,0,0,1]
["Beaxe","Axel Mustad",null,1,0,0,0,0,0,1]
[]
["Poengene gis etter Dirt-rally sitt system. Man vil alltid få 1 poeng i ett løp"]
["selv om man bryter underveis. 0 poeng er kun hvis man ikke har deltatt i løpet."]
["5 av 6 løp er tellende, dvs har man kjørt alle seks løpene i f.eks RWD vil det"]
["dårligste resultatet bli strøket i den klassen. Poeng markert med rødt er da tatt vekk"]

{"sheet":"R5","index":4,"n_rows":26,"n_cols":10,"rows_kept":26}
["ABMO DIRT-CUP, R5",null,"KLUBB","Løp 1","Løp 2","Løp 3","Løp 4","Løp 5","Løp 6","Totalt"]
["Holmdahl89","Martin Holmdahl","KNA Kongsvinger",11,9,12,7,13,8,53]
["Kjelloeyvindnor","Kjell Øyvind Pedersen","NMK Hønefoss",7,6,9,10,7,11,44]
["Rallywangen2008","Martin Wangen","Asker og Bærum Motorsport",5,2,8,2,10,5,30]
["Chrisboy961","Christopher S Kolbjørnsen","NMK Gardermoen",8,3,2,5,5,7,28]
["Slow-Go73","Ole Gunnar Nilsen","Happarally",4,4,4,6,8,4,26]
["Nyhus240racing","Roar Nyhus","KNA Kongsvinger",0,5,5,0,6,6,{"$f":"SUM(D7:I7)","v":22}]
["Prebenberg2","Preben Berg","Asker og Bærum Motorsport",1,1,6,3,4,1,15]
["SimenNB","Simen Nordheim Berg","Asker og Bærum Motorsport",0,0,7,4,3,0,{"$f":"SUM(D9:I9)","v":14}]
["Sainless89","Pål Gundersen","Søbakken Racing",6,1,1,0,0,0,{"$f":"SUM(D10:I10)","v":8}]
["Clubmans-cave","Espen Selvik","Asker og Bærum Motorsport",2,1,1,1,1,2,7]
["Of","Oliver Fredriksen","Asker og Bærum Motorsport",3,0,3,0,0,0,6]
["K_johnsen86","Kenneth Johnsen","Asker og Bærum Motorsport",0,0,0,1,1,1,{"$f":"SUM(D13:I13)","v":3}]
["Normagnus","Magnus Hage Larsen","Asker og Bærum Motorsport",0,0,0,0,0,3,{"$f":"SUM(D14:I14)","v":3}]
["MG-One66","Morten Gravermoen","NMK Modum og Sigdal",0,0,0,1,1,0,2]
["Johannessennor","Kjetil Johannessen",null,0,0,0,0,2,0,2]
["Karltangen","Karl Tangen",null,0,0,0,0,1,1,2]
["Tgs82","Trond Gunnar Stensby",null,1,0,0,0,0,0,1]
["Beaxe","Axel Mustad",null,1,0,0,0,0,0,1]
["SNP","Sander Nathaniel Pedersen","NMK Harstad",0,0,1,0,0,0,1]
[]
[]
["Poengene gis etter Dirt-rally sitt system. Man vil alltid få 1 poeng i ett løp"]
["selv om man bryter underveis. 0 poeng er kun hvis man ikke har deltatt i løpet."]
["5 av 6 løp er tellende, dvs har man kjørt alle seks løpene i f.eks R5 vil det"]
["dårligste resultatet bli strøket i den klassen. Poeng markert i rødt er da tatt vekk"]